fUSD/lending_fUSD_20250716
["ID","MTS","AMOUNT","RATE_DAILY","PERIOD"]
[372594903,1752699040470,-2423.0,0.00019871,2]
[372594904,1752699040479,-460.0,0.00019871,2]
[372594905,1752699040489,-460.0,0.00019871,2]
[372594906,1752699040499,-1740.97,0.00019871,2]
[372594907,1752699040508,-2163.86,0.00019871,2]
[372594908,1752699040518,-460.0,0.00019871,2]
[372594909,1752699040527,-460.0,0.00019871,2]
[372594910,1752699040536,-460.0,0.00019871,2]
[372594911,1752699040545,-652.13,0.00019871,2]
[372594912,1752699040555,-4557.14,0.00019871,2]
[372594913,1752699040564,-460.0,0.00019871,2]
[372594914,1752699040573,-2453.99,0.00019871,2]
[372594915,1752699040582,-502.39310709,0.00019871,2]
[372594916,1752699040592,-1513.81,0.00019871,2]
[372594917,1752699040601,-526.58,0.00019871,2]
[372594919,1752699040611,-659.45,0.00019871,2]
[372594921,1752699040620,-460.0,0.00019871,2]
[372594923,1752699040630,-1900.94,0.00019871,2]
[372594925,1752699040640,-460.0,0.00019871,2]
[372594926,1752699040650,-742.07,0.00019871,2]
[372594929,1752699040660,-460.0,0.00019871,2]
[372594931,1752699040671,-460.0,0.00019871,2]
[372594932,1752699040681,-2689.95,0.00019871,2]
[372594935,1752699040691,-460.0,0.00019871,2]
[372594937,1752699040701,-460.0,0.00019871,2]
[372594938,1752699040714,-4247.74,0.00019871,2]
[372594940,1752699040723,-151.0,0.00019871,2]
[372594943,1752699040734,-460.0,0.00019871,2]
[372594944,1752699040743,-173.061844,0.00019871,2]
[372594947,1752699040753,-460.0,0.00019872,2]
[372594948,1752699040762,-460.0,0.00019872,2]
[372594951,1752699040772,-460.0,0.00019872,2]
[372594953,1752699040781,-460.0,0.00019872,2]
[372594954,1752699040791,-575.59,0.00019872,2]
[372594956,1752699040800,-381.82196629,0.00019872,2]
[372594958,1752699040810,-460.0,0.00019872,2]
[372594960,1752699040820,-460.0,0.00019872,2]
[372594962,1752699040830,-460.0,0.00019872,2]
[372594964,1752699040839,-460.0,0.00019872,2]
[372594966,1752699040849,-460.0,0.00019872,2]
[372594968,1752699040858,-460.0,0.00019872,2]
[372594970,1752699040868,-447.690608,0.00019872,2]
[372594972,1752699040878,-948.73,0.00019872,2]
[372594974,1752699040887,-460.0,0.00019872,2]
[372594976,1752699040897,-485.16,0.00019872,2]
[372594978,1752699040906,-501.41538732,0.00019872,2]
[372594982,1752699040916,-460.0,0.00019872,2]
[372594984,1752699040925,-840.87,0.00019872,2]
[372594987,1752699040935,-460.0,0.00019872,2]
[372594988,1752699040944,-460.0,0.00019872,2]
[372594990,1752699040954,-460.0,0.00019872,2]
[372594993,1752699040966,-460.0,0.00019872,2]
[372594995,1752699040975,-460.0,0.00019872,2]
[372594997,1752699040985,-460.0,0.00019872,2]
[372594999,1752699040995,-460.0,0.00019872,2]
[372595001,1752699041010,-460.0,0.00019872,2]
[372595003,1752699041020,-460.0,0.00019872,2]
[372595005,1752699041030,-460.0,0.00019872,2]
[372595007,1752699041040,-1136.3,0.00019872,2]
[372595009,1752699041050,-460.0,0.00019872,2]
[372595011,1752699041060,-460.0,0.00019872,2]
[372595013,1752699041070,-460.0,0.00019872,2]
[372595016,1752699041080,-500.4076332,0.00019872,2]
[372595018,1752699041090,-460.0,0.00019872,2]
[372595020,1752699041101,-460.0,0.00019872,2]
[372595035,1752699041246,-518.93638152,0.00019872,2]
[372595037,1752699041256,-460.0,0.00019872,2]
[372595039,1752699041265,-460.0,0.00019872,2]
[372595041,1752699041275,-460.0,0.00019872,2]
[372595043,1752699041285,-460.0,0.00019872,2]
[372595045,1752699041294,-460.0,0.00019872,2]
[372595047,1752699041303,-460.0,0.00019872,2]
[372595049,1752699041313,-460.0,0.00019872,2]
[372595051,1752699041323,-721.37,0.00019872,2]
[372595053,1752699041332,-460.0,0.00019872,2]
[372595055,1752699041342,-460.0,0.00019872,2]
[372595057,1752699041351,-151.0,0.00019872,2]
[372595059,1752699041360,-460.0,0.00019872,2]
[372595061,1752699041370,-460.0,0.00019872,2]
[372595063,1752699041379,-460.0,0.00019872,2]
[372595065,1752699041388,-503.22,0.00019872,2]
[372595067,1752699041398,-460.0,0.00019872,2]
[372595069,1752699041409,-653.32,0.00019872,2]
[372595071,1752699041418,-1160.03,0.00019872,2]
[372595073,1752699041428,-173.941357,0.00019872,2]
[372595075,1752699041437,-460.0,0.00019872,2]
[372595077,1752699041446,-460.0,0.00019872,2]
[372595079,1752699041458,-460.0,0.00019872,2]
[372595081,1752699041467,-460.0,0.00019872,2]
[372595083,1752699041477,-460.0,0.00019872,2]
[372595085,1752699041486,-460.0,0.00019872,2]
[372595087,1752699041495,-671.73,0.00019872,2]
[372595089,1752699041504,-460.0,0.00019872,2]
[372595091,1752699041514,-460.0,0.00019872,2]
[372595093,1752699041523,-460.0,0.00019872,2]
[372595095,1752699041532,-460.0,0.00019872,2]
[372595097,1752699041542,-460.0,0.00019872,2]
[372595099,1752699041551,-460.0,0.00019872,2]
[372595101,1752699041560,-460.0,0.00019872,2]
[372595103,1752699041570,-872.24,0.00019872,2]
[372595105,1752699041579,-547.49552928,0.00019872,2]
[372595107,1752699041588,-151.0,0.00019872,2]
[372595108,1752699041597,-460.0,0.00019872,2]
[372595110,1752699041607,-460.0,0.00019872,2]
[372595112,1752699041616,-460.0,0.00019872,2]
[372595114,1752699041627,-460.0,0.00019872,2]
[372595116,1752699041636,-460.0,0.00019872,2]
[372595118,1752699041645,-151.0,0.00019872,2]
[372595120,1752699041654,-460.0,0.00019872,2]
[372595122,1752699041663,-206.648635,0.00019872,2]
[372595124,1752699041672,-460.0,0.00019872,2]
[372595126,1752699041682,-460.0,0.00019872,2]
[372595128,1752699041691,-460.0,0.00019872,2]
[372595130,1752699041700,-460.0,0.00019872,2]
[372595132,1752699041712,-555.71563115,0.00019872,2]
[372595134,1752699041722,-460.0,0.00019872,2]
[372595136,1752699041731,-502.56,0.00019872,2]
[372595138,1752699041741,-460.0,0.00019872,2]
[372595140,1752699041751,-460.0,0.00019872,2]
[372595142,1752699041760,-460.0,0.00019872,2]
[372595144,1752699041770,-460.0,0.00019872,2]
[372595146,1752699041779,-460.0,0.00019872,2]
[372595148,1752699041789,-460.0,0.00019872,2]
[372595150,1752699041798,-460.0,0.00019872,2]
[372595152,1752699041807,-344.1093554,0.00019872,2]
[372595154,1752699041816,-460.0,0.00019872,2]
[372595156,1752699041825,-460.0,0.00019872,2]
[372595158,1752699041835,-460.0,0.00019872,2]
[372595160,1752699041844,-460.0,0.00019872,2]
[372595162,1752699041853,-460.0,0.00019872,2]
[372595164,1752699041863,-460.0,0.00019872,2]
[372595166,1752699041872,-460.0,0.00019872,2]
[372595168,1752699041881,-460.0,0.00019872,2]
[372595170,1752699041890,-460.0,0.00019872,2]
[372595172,1752699041900,-460.0,0.00019872,2]
[372595174,1752699041910,-460.0,0.00019872,2]
[372595176,1752699041919,-460.0,0.00019872,2]
[372595178,1752699041928,-460.0,0.00019872,2]
[372595180,1752699041937,-460.0,0.00019872,2]
[372595182,1752699041946,-1193.94,0.00019872,2]
[372595184,1752699041957,-512.32,0.00019872,2]
[372595186,1752699041967,-460.0,0.00019872,2]
[372595188,1752699041976,-460.0,0.00019872,2]
[372595190,1752699041985,-460.0,0.00019872,2]
[372595192,1752699041996,-460.0,0.00019872,2]
[372595194,1752699042005,-460.0,0.00019872,2]
[372595196,1752699042014,-460.0,0.00019872,2]
[372595198,1752699042024,-460.0,0.00019872,2]
[372595200,1752699042034,-460.0,0.00019872,2]
[372595202,1752699042043,-460.0,0.00019872,2]
[372595204,1752699042053,-460.0,0.00019872,2]
[372595206,1752699042063,-460.0,0.00019872,2]
[372595208,1752699042071,-500.0,0.00019872,2]
[372595210,1752699042081,-151.0,0.00019872,2]
[372595212,1752699042090,-460.0,0.00019872,2]
[372595214,1752699042099,-560.64,0.00019872,2]
[372595216,1752699042111,-928.57,0.00019872,2]
[372595218,1752699042121,-151.0,0.00019872,2]
[372595220,1752699042130,-151.0,0.00019872,2]
[372595222,1752699042139,-460.0,0.00019872,2]
[372595224,1752699042148,-151.0,0.00019872,2]
[372595226,1752699042159,-759.67,0.00019872,2]
[372595227,1752699042168,-197.07251,0.00019872,2]
[372595229,1752699042179,-151.0,0.00019872,2]
[372595232,1752699042191,-460.0,0.00019872,2]
[372595234,1752699042202,-151.0,0.00019872,2]
[372595236,1752699042212,-460.0,0.00019872,2]
[372595238,1752699042222,-197.07251,0.00019872,2]
[372595240,1752699042231,-151.0,0.00019872,2]
[372595242,1752699042240,-151.0,0.00019872,2]
[372595244,1752699042250,-521.4,0.00019872,2]
[372595246,1752699042259,-460.0,0.00019872,2]
[372595248,1752699042269,-1095.55,0.00019872,2]
[372595249,1752699042281,-460.04,0.00019872,2]
[372595251,1752699042291,-460.0,0.00019872,2]
[372595254,1752699042300,-414.9466187,0.00019872,2]
[372595256,1752699042310,-460.0,0.00019872,2]
[372595257,1752699042320,-1454.43,0.00019872,2]
[372595260,1752699042331,-500.0,0.00019872,2]
[372595262,1752699042340,-151.0,0.00019872,2]
[372595264,1752699042350,-460.0,0.00019872,2]
[372595265,1752699042360,-847.43,0.00019872,2]
[372595268,1752699042370,-151.0,0.00019872,2]
[372595270,1752699042380,-568.77,0.00019872,2]
[372595272,1752699042389,-460.0,0.00019872,2]
[372595274,1752699042399,-555.13,0.00019872,2]
[372595275,1752699042408,-632.45,0.00019872,2]
[372595277,1752699042418,-2407.85,0.00019872,2]
[372595279,1752699042427,-500.0,0.00019872,2]
[372595281,1752699042436,-460.0,0.00019872,2]
[372595283,1752699042446,-460.0,0.00019872,2]
[372595285,1752699042455,-460.0,0.00019872,2]
[372595287,1752699042464,-460.0,0.00019872,2]
[372595289,1752699042473,-460.0,0.00019872,2]
[372595292,1752699042483,-460.0,0.00019872,2]
[372595295,1752699042492,-460.0,0.00019872,2]
[372595298,1752699042502,-460.0,0.00019872,2]
[372595300,1752699042511,-486.35,0.00019872,2]
[372595302,1752699042521,-460.0,0.00019872,2]
[372595304,1752699042531,-460.0,0.00019872,2]
[372595306,1752699042540,-460.0,0.00019872,2]
[372595308,1752699042549,-460.0,0.00019872,2]
[372595310,1752699042559,-460.0,0.00019872,2]
[372595312,1752699042569,-460.0,0.00019872,2]
[372595314,1752699042578,-915.89,0.00019872,2]
[372595316,1752699042587,-460.0,0.00019872,2]
[372595319,1752699042597,-500.0,0.00019872,2]
[372595322,1752699042607,-460.0,0.00019872,2]
[372595326,1752699042616,-460.0,0.00019872,2]
[372595329,1752699042626,-460.0,0.00019872,2]
[372595333,1752699042635,-460.0,0.00019872,2]
[372595336,1752699042644,-460.0,0.00019872,2]
[372595340,1752699042654,-1646.43,0.00019872,2]
[372595344,1752699042663,-460.0,0.00019872,2]
[372595349,1752699042672,-548.17,0.00019872,2]
[372595352,1752699042682,-462.37664492,0.00019872,2]
[372595355,1752699042691,-500.0,0.00019872,2]
[372595358,1752699042700,-1004.3,0.00019872,2]
[372595361,1752699042711,-500.0,0.00019872,2]
[372595363,1752699042720,-1649.7,0.00019872,2]
[372595365,1752699042729,-550.77,0.00019872,2]
[372595367,1752699042739,-1920.88,0.00019872,2]
[372595370,1752699042749,-460.0,0.00019872,2]
[372595372,1752699042759,-460.0,0.00019872,2]
[372595374,1752699042768,-460.0,0.00019872,2]
[372595376,1752699042777,-151.0,0.00019872,2]
[372595378,1752699042787,-460.0,0.00019872,2]
[372595380,1752699042796,-151.0,0.00019872,2]
[372595382,1752699042806,-151.0,0.00019872,2]
[372595384,1752699042815,-664.23,0.00019872,2]
[372595386,1752699042824,-460.0,0.00019872,2]
[372595388,1752699042834,-151.0,0.00019872,2]
[372595390,1752699042843,-460.0,0.00019872,2]
[372595392,1752699042852,-551.45723043,0.00019872,2]
[372595394,1752699042861,-151.0,0.00019872,2]
[372595396,1752699042870,-151.0,0.00019872,2]
[372595398,1752699042879,-460.0,0.00019872,2]
[372595400,1752699042888,-460.0,0.00019872,2]
[372595402,1752699042898,-151.0,0.00019872,2]
[372595404,1752699042907,-460.0,0.00019872,2]
[372595406,1752699042915,-460.0,0.00019872,2]
[372595408,1752699042924,-151.0,0.00019872,2]
[372595410,1752699042934,-460.0,0.00019872,2]
[372595412,1752699042943,-460.0,0.00019872,2]
[372595414,1752699042953,-460.0,0.00019872,2]
[372595416,1752699042963,-460.0,0.00019872,2]
[372595418,1752699042973,-460.0,0.00019872,2]
[372595420,1752699042982,-151.121193,0.00019872,2]
[372595422,1752699042992,-460.0,0.00019872,2]
[372595424,1752699043001,-460.0,0.00019872,2]
[372595426,1752699043010,-697.71,0.00019872,2]
[372595428,1752699043019,-460.0,0.00019872,2]
[372595430,1752699043029,-460.0,0.00019872,2]
[372595432,1752699043039,-1339.76,0.00019872,2]
[372595434,1752699043048,-460.0,0.00019872,2]
[372595436,1752699043058,-460.0,0.00019872,2]
[372595438,1752699043067,-460.0,0.00019872,2]
[372595440,1752699043076,-460.0,0.00019872,2]
[372595442,1752699043086,-460.0,0.00019872,2]
[372595444,1752699043095,-2753.92,0.00019872,2]
[372595446,1752699043104,-574.01,0.00019872,2]
[372595447,1752699043116,-460.0,0.00019872,2]
[372595450,1752699043125,-1301.81,0.00019872,2]
[372595451,1752699043135,-460.0,0.00019872,2]
[372595453,1752699043144,-460.0,0.00019872,2]
[372595455,1752699043155,-463.37739623,0.00019872,2]
[372595457,1752699043164,-460.0,0.00019872,2]
[372595459,1752699043173,-460.0,0.00019872,2]
[372595462,1752699043182,-460.0,0.00019872,2]
[372595465,1752699043194,-460.0,0.00019872,2]
[372595468,1752699043204,-460.0,0.00019872,2]
[372595470,1752699043215,-500.0,0.00019872,2]
[372595472,1752699043224,-676.89,0.00019872,2]
[372595474,1752699043233,-1240.9,0.00019872,2]
[372595476,1752699043243,-460.0,0.00019872,2]
[372595478,1752699043253,-369.229617,0.00019872,2]
[372595480,1752699043262,-369.229617,0.00019872,2]
[372595482,1752699043271,-460.0,0.00019872,2]
[372595484,1752699043281,-460.0,0.00019872,2]
[372595486,1752699043291,-714.25,0.00019872,2]
[372595488,1752699043300,-886.905865,0.00019872,2]
[372595490,1752699043309,-886.905865,0.00019872,2]
[372595492,1752699043319,-460.0,0.00019872,2]
[372595494,1752699043328,-886.905865,0.00019872,2]
[372595496,1752699043338,-461.03122876,0.00019872,2]
[372595498,1752699043347,-460.0,0.00019872,2]
[372595500,1752699043357,-886.905865,0.00019872,2]
[372595502,1752699043366,-886.905865,0.00019872,2]
[372595504,1752699043376,-738.58040719,0.00019872,2]
[372595566,1752699044073,-148.32545781,0.00019872,2]
[372595568,1752699044082,-460.0,0.00019872,2]
[372595570,1752699044091,-498.60759056,0.00019872,2]
[372595579,1752699044163,-186.09240944,0.00019872,2]
[372595580,1752699044172,-460.0,0.00019872,2]
[372595582,1752699044181,-460.0,0.00019872,2]
[372595584,1752699044191,-460.0,0.00019872,2]
[372595586,1752699044200,-254.28828127,0.00019872,2]
[372595589,1752699044221,-205.71171873,0.00019872,2]
[372595591,1752699044230,-501.28985591,0.00019872,2]
[372595594,1752699044241,-571.35014409,0.00019872,2]
[372595596,1752699044250,-57.17653801,0.00019872,2]
[372595598,1752699044262,-402.82346199,0.00019872,2]
[372595600,1752699044271,-460.0,0.00019872,2]
[372595602,1752699044281,-460.0,0.00019872,2]
[372595604,1752699044291,-220.26601965,0.00019872,2]
[372595606,1752699044301,-522.13,0.00019872,2]
[372595608,1752699044310,-57.60472379,0.00019872,2]
[372595612,1752699044337,-402.39527621,0.00019872,2]
[372595614,1752699044347,-460.0,0.00019872,2]
[372595616,1752699044357,-460.0,0.00019872,2]
[372595618,1752699044367,-460.0,0.00019872,2]
[372595620,1752699044376,-612.59,0.00019872,2]
[372595622,1752699044386,-836.04,0.00019872,2]
[372595623,1752699044395,-460.0,0.00019872,2]
[372595625,1752699044404,-460.0,0.00019872,2]
[372595627,1752699044415,-460.0,0.00019872,2]
[372595630,1752699044424,-460.0,0.00019872,2]
[372595631,1752699044434,-304.75976589,0.00019872,2]
[372595646,1752699044568,-460.0,0.00019872,2]
[372595648,1752699044578,-460.0,0.00019872,2]
[372595650,1752699044587,-460.0,0.00019872,2]
[372595652,1752699044597,-712.22,0.00019872,2]
[372595654,1752699044608,-1722.027227,0.00019872,2]
[372595656,1752699044617,-509.0963141,0.00019872,2]
[372595658,1752699044627,-460.0,0.00019872,2]
[372595660,1752699044636,-1722.027227,0.00019872,2]
[372595662,1752699044646,-621.32,0.00019872,2]
[372595664,1752699044655,-460.0,0.00019872,2]
[372595666,1752699044665,-460.0,0.00019872,2]
[372595668,1752699044674,-461.18125849,0.00019872,2]
[372595670,1752699044683,-2461.63,0.00019872,2]
[372595672,1752699044694,-151.0,0.00019872,2]
[372595674,1752699044703,-460.0,0.00019872,2]
[372595676,1752699044713,-460.0,0.00019872,2]
[372595678,1752699044722,-151.0,0.00019872,2]
[372595680,1752699044731,-460.0,0.00019872,2]
[372595682,1752699044741,-460.0,0.00019872,2]
[372595684,1752699044750,-460.0,0.00019872,2]
[372595686,1752699044759,-460.0,0.00019872,2]
[372595688,1752699044768,-318.349682,0.00019872,2]
[372595690,1752699044777,-460.0,0.00019872,2]
[372595692,1752699044786,-299.80382413,0.00019872,2]
[372595842,1752699046205,-173.061844,0.0001987,2]
[372595844,1752699046215,-173.061844,0.00019871,2]
[372595846,1752699046225,-89.26014427,0.00019871,2]
[372595896,1752699046819,-277.657,0.00019671,2]
[372595944,1752699047259,-302.7858437,0.00019771,2]
[372595946,1752699047272,-157.2141563,0.00019771,2]
[372595948,1752699047283,-460.0,0.00019771,2]
[372595950,1752699047293,-460.0,0.00019772,2]
[372595952,1752699047302,-59.26084369,0.00019871,2]
[372595960,1752699047363,-24.54085604,0.00019871,2]
[372595962,1752699047374,-173.061844,0.00019871,2]
[372595964,1752699047384,-173.061844,0.00019871,2]
[372595966,1752699047394,-948.8,0.00019871,2]
[372595968,1752699047403,-173.061844,0.00019871,2]
[372595970,1752699047413,-173.061844,0.00019871,2]
[372595972,1752699047422,-173.061844,0.00019871,2]
[372595974,1752699047432,-173.061844,0.00019871,2]
[372595976,1752699047442,-173.061844,0.00019871,2]
[372595978,1752699047451,-18.54585787,0.00019872,2]
[372595980,1752699047462,-488.35,0.00019872,2]
[372595982,1752699047472,-460.0,0.00019872,2]
[372595984,1752699047481,-318.349682,0.00019872,2]
[372595986,1752699047491,-318.349682,0.00019872,2]
[372595988,1752699047500,-460.0,0.00019872,2]
[372595990,1752699047510,-460.0,0.00019872,2]
[372595992,1752699047519,-460.0,0.00019872,2]
[372595994,1752699047529,-661.575154,0.00019872,2]
[372595996,1752699047538,-661.575154,0.00019872,2]
[372595998,1752699047548,-661.575154,0.00019872,2]
[372596000,1752699047557,-460.0,0.00019872,2]
[372596002,1752699047567,-151.0,0.00019872,2]
[372596004,1752699047576,-661.575154,0.00019872,2]
[372596006,1752699047587,-151.0,0.00019872,2]
[372596008,1752699047598,-151.0,0.00019872,2]
[372596010,1752699047607,-151.0,0.00019872,2]
[372596012,1752699047616,-1647.93354666,0.00019872,2]
[372596014,1752699047628,-265.12512047,0.00019872,2]
[372596048,1752699047939,-7702.92,0.00019871,2]
[372596050,1752699047949,-319.18133287,0.00019872,2]
[372596052,1752699047958,-460.0,0.00019872,2]
[372596054,1752699047969,-665.24,0.00019872,2]
[372596056,1752699047979,-661.575154,0.00019872,2]
[372596058,1752699047988,-661.575154,0.00019872,2]
[372596060,1752699047998,-661.575154,0.00019872,2]
[372596062,1752699048008,-661.575154,0.00019872,2]
[372596064,1752699048018,-460.4084483,0.00019872,2]
[372596066,1752699048027,-460.0,0.00019872,2]
[372596068,1752699048037,-460.0,0.00019872,2]
[372596070,1752699048047,-460.0,0.00019872,2]
[372596072,1752699048057,-1826.22,0.00019872,2]
[372596074,1752699048067,-460.0,0.00019872,2]
[372596076,1752699048077,-460.0,0.00019872,2]
[372596078,1752699048087,-460.0,0.00019872,2]
[372596080,1752699048097,-460.0,0.00019872,2]
[372596082,1752699048107,-460.0,0.00019872,2]
[372596084,1752699048119,-460.0,0.00019872,2]
[372596086,1752699048129,-460.0,0.00019872,2]
[372596088,1752699048139,-682.54,0.00019872,2]
[372596090,1752699048149,-460.0,0.00019872,2]
[372596092,1752699048160,-460.0,0.00019872,2]
[372596094,1752699048171,-478.09,0.00019872,2]
[372596097,1752699048181,-1128.36,0.00019872,2]
[372596099,1752699048191,-460.0,0.00019872,2]
[372596101,1752699048201,-519.05,0.00019872,2]
[372596103,1752699048214,-151.0,0.00019872,2]
[372596105,1752699048224,-460.0,0.00019872,2]
[372596107,1752699048234,-151.0,0.00019872,2]
[372596109,1752699048244,-460.0,0.00019872,2]
[372596111,1752699048254,-151.0,0.00019872,2]
[372596113,1752699048264,-1147.04,0.00019872,2]
[372596115,1752699048275,-460.0,0.00019872,2]
[372596117,1752699048286,-460.0,0.00019872,2]
[372596119,1752699048296,-460.0,0.00019872,2]
[372596121,1752699048307,-460.0,0.00019872,2]
[372596123,1752699048319,-460.0,0.00019872,2]
[372596125,1752699048329,-460.0,0.00019872,2]
[372596127,1752699048340,-460.0,0.00019872,2]
[372596129,1752699048351,-460.0,0.00019872,2]
[372596131,1752699048361,-460.0,0.00019872,2]
[372596133,1752699048372,-1336.79,0.00019872,2]
[372596135,1752699048383,-460.0,0.00019872,2]
[372596137,1752699048393,-461.13,0.00019872,2]
[372596139,1752699048404,-269.318438,0.00019872,2]
[372596141,1752699048415,-269.318438,0.00019872,2]
[372596143,1752699048425,-269.318438,0.00019872,2]
[372596145,1752699048435,-460.0,0.00019872,2]
[372596147,1752699048445,-151.0,0.00019872,2]
[372596149,1752699048455,-269.318438,0.00019872,2]
[372596151,1752699048467,-269.318438,0.00019872,2]
[372596153,1752699048479,-269.318438,0.00019872,2]
[372596156,1752699048489,-1310.49,0.00019872,2]
[372596158,1752699048499,-460.0,0.00019872,2]
[372596160,1752699048509,-388.70770517,0.00019872,2]
[372596162,1752699048520,-616.64,0.00019872,2]
[372596164,1752699048529,-460.0,0.00019872,2]
[372596166,1752699048541,-547.74,0.00019872,2]
[372596167,1752699048550,-460.0,0.00019872,2]
[372596169,1752699048560,-692.32,0.00019872,2]
[372596172,1752699048570,-460.0,0.00019872,2]
[372596174,1752699048579,-460.0,0.00019872,2]
[372596176,1752699048589,-914.38,0.00019872,2]
[372596178,1752699048600,-460.0,0.00019872,2]
[372596180,1752699048611,-971.55,0.00019872,2]
[372596182,1752699048622,-460.0,0.00019872,2]
[372596184,1752699048633,-460.0,0.00019872,2]
[372596186,1752699048643,-460.0,0.00019872,2]
[372596188,1752699048652,-460.0,0.00019872,2]
[372596190,1752699048662,-460.0,0.00019872,2]
[372596192,1752699048672,-151.0,0.00019872,2]
[372596194,1752699048682,-151.0,0.00019872,2]
[372596196,1752699048691,-151.0,0.00019872,2]
[372596198,1752699048701,-462.22546092,0.00019872,2]
[372596200,1752699048714,-151.0,0.00019872,2]
[372596202,1752699048724,-460.0,0.00019872,2]
[372596204,1752699048734,-460.0,0.00019872,2]
[372596206,1752699048743,-624.44,0.00019872,2]
[372596208,1752699048752,-460.0,0.00019872,2]
[372596210,1752699048762,-461.07335345,0.00019872,2]
[372596212,1752699048772,-460.0,0.00019872,2]
[372596214,1752699048781,-460.0,0.00019872,2]
[372596216,1752699048790,-460.0,0.00019872,2]
[372596218,1752699048800,-951.63,0.00019872,2]
[372596220,1752699048810,-460.0,0.00019872,2]
[372596222,1752699048820,-1092.18,0.00019872,2]
[372596224,1752699048830,-541.15,0.00019872,2]
[372596226,1752699048839,-460.0,0.00019872,2]
[372596228,1752699048849,-849.722106,0.00019872,2]
[372596230,1752699048858,-849.722106,0.00019872,2]
[372596232,1752699048868,-849.722106,0.00019872,2]
[372596234,1752699048878,-460.0,0.00019872,2]
[372596237,1752699048888,-849.722106,0.00019872,2]
[372596239,1752699048898,-621.17,0.00019872,2]
[372596241,1752699048907,-460.0,0.00019872,2]
[372596243,1752699048917,-460.0,0.00019872,2]
[372596245,1752699048926,-849.722106,0.00019872,2]
[372596247,1752699048936,-849.722106,0.00019872,2]
[372596248,1752699048945,-849.722106,0.00019872,2]
[372596251,1752699048955,-849.722114,0.00019872,2]
[372596253,1752699048967,-460.0,0.00019872,2]
[372596255,1752699048976,-460.0,0.00019872,2]
[372596257,1752699048986,-848.92,0.00019872,2]
[372596259,1752699048996,-460.0,0.00019872,2]
[372596260,1752699049006,-1718.82,0.00019872,2]
[372596262,1752699049016,-460.0,0.00019872,2]
[372596265,1752699049025,-460.0,0.00019872,2]
[372596267,1752699049036,-460.0,0.00019872,2]
[372596269,1752699049045,-582.07,0.00019872,2]
[372596271,1752699049055,-463.19245736,0.00019872,2]
[372596273,1752699049064,-460.0,0.00019872,2]
[372596275,1752699049074,-500.23658778,0.00019872,2]
[372596277,1752699049084,-460.0,0.00019872,2]
[372596279,1752699049094,-460.0,0.00019872,2]
[372596281,1752699049103,-903.73,0.00019872,2]
[372596283,1752699049116,-866.0,0.00019872,2]
[372596285,1752699049126,-529.4,0.00019872,2]
[372596287,1752699049136,-460.0,0.00019872,2]
[372596289,1752699049146,-782.31,0.00019872,2]
[372596291,1752699049158,-470.315021,0.00019872,2]